[Event "WYCC 2018 O14"]
[Site "Halkidiki"]
[Date "2018.10.29"]
[Round "10"]
[White "Nogerbek, Kazybek"]
[Black "Subelj, Jan"]
[Result "1/2-1/2"]
[ECO "C97"]
[WhiteElo "2316"]
[BlackElo "2281"]
[Annotator "ChessBase"]
[PlyCount "157"]
[EventDate "2018.10.20"]
[EventType "swiss"]
[EventCountry "GRE"]
[SourceTitle "playchess.com"]
[Source "ChessBase"]
[SourceQuality "1"]
[TimeControl "40/5400+30:1800+30"]

1. e4 {[%emt 0:00:00]} e5 {[%emt 0:00:00]} 2. Nf3 {[%emt 0:00:00]} Nc6 {[%emt 0:00:16]} 3. Bb5 {[%emt 0:00:07]} a6 {[%emt 0:00:44]} 4. Ba4 {[%emt 0:00:07]} Nf6 {[%emt 0:00:39]} 5. O-O {[%emt 0:00:20]} Be7 {[%emt 0:00:24]} 6. Re1 {[%emt 0:00:34]} b5 {[%emt 0:01:05]} 7. Bb3 {[%emt 0:00:07]} d6 {[%emt 0:00:21]} 8. c3 {[%emt 0:00:07]} O-O {[%emt 0:00:06]} 9. h3 {[%emt 0:00:06]} Na5 {[%emt 0:00:51]} 10. Bc2 {[%emt 0:00:09]} c5 {[%emt 0:00:06]} 11. d4 {[%emt 0:00:06]} Qc7 {[%emt 0:00:06]} 12. d5 {[%emt 0:01:36]} Nc4 {[%emt 0:05:08]} 13. a4 {[%emt 0:09:22]} Bd7 {[%emt 0:08:12]} 14. b3 {[%emt 0:00:13]} Na5 {[%emt 0:00:40]} 15. axb5 {[%emt 0:06:45]} axb5 {[%emt 0:00:16]} 16. Nbd2 {[%emt 0:02:42]} g6 {[%emt 0:03:03]} 17. Nf1 {[%emt 0:03:41]} Nh5 {[%emt 0:02:35]} 18. Bh6 {[%emt 0:06:26]} Rfc8 {[%emt 0:02:29]} 19. Ra2 {[%emt 0:07:33]} Ra7 {[%emt 0:18:06]} 20. Qa1 {[%emt 0:23:55]} Rca8 {[%emt 0:00:20]} 21. Qb2 {[%emt 0:00:48]} Nb7 {[%emt 0:01:23]} 22. Rea1 {[%emt 0:12:18]} Nd8 {[%emt 0:00:19]} 23. b4 {[%emt 0:08:23]} c4 {[%emt 0:05:15]} 24. Be3 {[%emt 0:06:28]} Rxa2 {[%emt 0:00:09]} 25. Rxa2 {[%emt 0:00:03]} Rxa2 {[%emt 0:01:19]} 26. Qxa2 {[%emt 0:00:03]} f5 {[%emt 0:01:42]} 27. N3d2 {[%emt 0:02:27]} Qb7 {[%emt 0:01:47]} 28. f3 {[%emt 0:05:10]} Bf6 {[%emt 0:05:43]} 29. Qa7 {[%emt 0:00:42]} Nf4 {[%emt 0:03:14]} 30. Qxb7 {[%emt 0:00:19]} Nxb7 {[%emt 0:00:01]} 31. Nb1 {[%emt 0:01:35]} h5 {[%emt 0:03:54]} 32. Ng3 {[%emt 0:02:31]} Bg5 {[%emt 0:05:45]} 33. Bd2 {[%emt 0:01:14]} h4 {[%emt 0:01:16]} 34. Nf1 {[%emt 0:00:01]} Kf7 {[%emt 0:02:07]} 35. Kf2 {[%emt 0:00:01]} Kf6 {[%emt 0:01:30]} 36. Be3 {[%emt 0:00:28]} Nh5 {[%emt 0:00:41]} 37. Nbd2 {[%emt 0:01:10]} Bf4 {[%emt 0:10:36]} 38. Nb1 {[%emt 0:00:11]} Nd8 {[%emt 0:01:29]} 39. Nbd2 {[%emt 0:00:05]} Nf7 {[%emt 0:00:22]} 40. Ke2 {[%emt 0:00:00]} Ng3+ {[%emt 0:00:00]} 41. Kf2 {[%emt 0:05:51]} Kg5 {[%emt 0:10:23]} 42. Bb6 {[%emt 0:02:50]} Kf6 {[%emt 0:05:50]} 43. Be3 {[%emt 0:03:38]} Ng5 {[%emt 0:01:03]} 44. Bb1 {[%emt 0:01:20]} Ke7 {[%emt 0:02:00]} 45. Bc2 {[%emt 0:01:05]} Nh7 {[%emt 0:00:30]} 46. Nxg3 {[%emt 0:07:01]} hxg3+ {[%emt 0:03:41]} 47. Ke2 {[%emt 0:00:05]} Nf6 {[%emt 0:00:56]} 48. Nf1 {[%emt 0:01:37]} Nh5 {[%emt 0:01:27]} 49. Bb6 {[%emt 0:01:42]} Bg5 {[%emt 0:01:34]} 50. Ne3 {[%emt 0:00:39]} f4 {[%emt 0:03:39]} 51. Ng4 {[%emt 0:01:51]} Ng7 {[%emt 0:03:53]} 52. Bc7 {[%emt 0:00:10]} Ne8 {[%emt 0:00:22]} 53. Bb6 {[%emt 0:00:09]} Bc8 {[%emt 0:01:53]} 54. Bd1 {[%emt 0:01:01]} Ba6 {[%emt 0:01:25]} 55. Ke1 {[%emt 0:00:19]} Bc8 {[%emt 0:01:54]} 56. Bc2 {[%emt 0:00:29]} Ng7 {[%emt 0:00:11]} 57. Bc7 {[%emt 0:01:08]} Bd7 {[%emt 0:01:50]} 58. Ke2 {[%emt 0:00:42]} Be8 {[%emt 0:02:41]} 59. Ke1 {[%emt 0:00:24]} Kd7 {[%emt 0:00:05]} 60. Bb6 {[%emt 0:00:11]} Kc8 {[%emt 0:00:24]} 61. Ke2 {[%emt 0:00:35]} Kb7 {[%emt 0:00:25]} 62. Ba5 {[%emt 0:00:34]} Bd7 {[%emt 0:00:59]} 63. Bb1 {[%emt 0:01:12]} Ne8 {[%emt 0:01:09]} 64. Bc2 {[%emt 0:00:21]} Bxg4 {[%emt 0:02:22]} 65. hxg4 {[%emt 0:00:11]} Nf6 {[%emt 0:00:10]} 66. Bb1 {[%emt 0:00:47]} Nd7 {[%emt 0:00:24]} 67. Bc2 {[%emt 0:00:13]} Be7 {[%emt 0:00:03]} 68. Bd1 {[%emt 0:00:17]} Ka6 {[%emt 0:00:08]} 69. Bc7 {[%emt 0:00:20]} g5 {[%emt 0:00:22]} 70. Bc2 {[%emt 0:00:31]} Nf8 {[%emt 0:00:06]} 71. Bd1 {[%emt 0:00:06]} Ng6 {[%emt 0:00:03]} 72. Bc2 {[%emt 0:00:08]} Kb7 {[%emt 0:00:22]} 73. Ba5 {[%emt 0:00:13]} Nh4 {[%emt 0:00:13]} 74. Kf1 {[%emt 0:00:05]} Ng6 {[%emt 0:00:05]} 75. Ke2 {[%emt 0:00:04]} Nf8 {[%emt 0:00:06]} 76. Bb1 {[%emt 0:00:09]} Nd7 {[%emt 0:00:04]} 77. Bc2 {[%emt 0:00:07]} Nb6 {[%emt 0:00:07]} 78. Bxb6 {[%emt 0:00:10]} Kxb6 {[%emt 0:00:04]} 79. Kd2 {[%emt 0:00:10]} 1/2-1/2

[Event "WYCC 2018 O14"]
[Site "Halkidiki"]
[Date "2018.10.29"]
[Round "10"]
[White "Krastev, Alexander"]
[Black "Kushagra Mohan"]
[Result "1-0"]
[ECO "E91"]
[WhiteElo "2298"]
[BlackElo "2283"]
[Annotator "NA"]
[PlyCount "65"]
[EventDate "2018.10.20"]
[EventType "swiss"]
[EventCountry "GRE"]
[SourceTitle "playchess.com"]
[Source "ChessBase"]
[SourceQuality "1"]
[TimeControl "40/5400+30:1800+30"]

1. d4 {[%emt 0:00:00]} Nf6 {[%emt 0:00:00]} 2. c4 {[%emt 0:00:00]} g6 {[%emt 0:00:00]} 3. Nc3 {[%emt 0:00:00]} Bg7 {[%emt 0:00:00]} 4. e4 {[%emt 0:00:00]} d6 {[%emt 0:00:00]} 5. Nf3 {[%emt 0:00:00]} O-O {[%emt 0:00:00]} 6. Be2 {[%emt 0:00:00]} Bg4 {[%emt 0:01:01]} 7. O-O {[%emt 0:00:32]} Nfd7 {[%emt 0:00:18]} 8. Be3 {[%emt 0:04:43]} Nc6 {[%emt 0:00:52]} 9. d5 {[%emt 0:12:25]} Bxf3 {[%emt 0:00:38]} 10. gxf3 {[%emt 0:06:56] LiveBook: 10 Games} Na5 {[%emt 0:01:58]} 11. Rc1 {[%emt 0:00:33]} c5 {[%emt 0:02:24] E91: King's Indian: Classical: 6 Be2, unusual replies including 6...c5 and 6...Bg4} 12. f4 $146 {[%emt 0:09:07]} ({Predecessor:} 12. Kh1 f5 13. f4 Nf6 14. exf5 gxf5 15. Rg1 Kh8 16. Bd3 Qd7 17. Qf3 e6 18. Qh3 exd5 19. Bxf5 Qf7 20. Nxd5 h6 21. Rxg7 Qxg7 22. Rg1 Nxc4 23. Rxg7 Kxg7 24. Qg2+ Kh8 25. Qg6 {1-0 (25) Grischuk,A (2760)-Barthel,A (2230) Mainz 2010}) 12... a6 {[%emt 0:07:47]} 13. a3 {[%emt 0:08:29]} (13. b3 $16) 13... b6 {[%emt 0:05:14]} 14. Kh1 {[%emt 0:03:12]} f5 {[%emt 0:13:11]} 15. f3 {[%emt 0:00:49]} Rc8 {[%emt 0:07:02]} 16. Bd3 $16 {[%emt 0:04:54]} Qe8 {[%emt 0:05:41]} 17. Qc2 {[%emt 0:08:54]} e6 {[%emt 0:14:47]} 18. Rce1 {[%emt 0:05:32]} exd5 {[%emt 0:04:54]} 19. Nxd5 {[%emt 0:01:28]} fxe4 {[%emt 0:01:10]} 20. fxe4 {[%emt 0:00:25]} Nc6 {[%emt 0:02:07]} 21. Qg2 {[%emt 0:05:29]} Kh8 {[%emt 0:01:13]} 22. Rf3 {[%emt 0:02:17]} b5 {[%emt 0:04:58]} 23. Rh3 {[%emt 0:01:29]} Qe6 {[%emt 0:03:29]} 24. f5 {[%emt 0:03:52]} gxf5 {[%emt 0:02:30]} 25. exf5 {[%emt 0:00:23]} Rxf5 {[%emt 0:03:53]} 26. Rxh7+ {[%emt 0:01:55]} Kxh7 {[%emt 0:01:26]} 27. Qh3+ {[%emt 0:00:07]} Kg8 {[%emt 0:00:35]} 28. Bxf5 {[%emt 0:00:06]} Qe5 {[%emt 0:01:00]} 29. Bxd7 {[%emt 0:01:06]} Qe4+ {[%emt 0:00:37]} 30. Qg2 {[%emt 0:00:07]} Qxg2+ {[%emt 0:00:49]} 31. Kxg2 {[%emt 0:00:05]} Rb8 {[%emt 0:00:05]} 32. Bxc6 {[%emt 0:00:46]} bxc4 {[%emt 0:00:02]} 33. Rb1 {[%emt 0:02:35]} 1-0

[Event "WYCC 2018 O14"]
[Site "Halkidiki"]
[Date "2018.10.29"]
[Round "10"]
[White "Avila Pavas, Santiago"]
[Black "Suleymanli, Aydin"]
[Result "0-1"]
[ECO "D02"]
[WhiteElo "2277"]
[BlackElo "2313"]
[Annotator "NA"]
[PlyCount "120"]
[EventDate "2018.10.20"]
[EventType "swiss"]
[EventCountry "GRE"]
[SourceTitle "playchess.com"]
[Source "ChessBase"]
[SourceQuality "1"]
[TimeControl "40/5400+30:1800+30"]

1. d4 {[%emt 0:00:00]} d5 {[%emt 0:00:00]} 2. Nf3 {[%emt 0:00:00]} Nf6 {[%emt 0:00:00]} 3. g3 {[%emt 0:00:00]} Bf5 {[%emt 0:01:09]} 4. Bg2 {[%emt 0:00:01]} e6 {[%emt 0:00:10]} 5. O-O {[%emt 0:00:28]} Be7 {[%emt 0:02:52]} 6. c4 {[%emt 0:03:27]} c6 {[%emt 0:01:23]} 7. Nc3 {[%emt 0:00:50]} O-O {[%emt 0:00:09]} 8. b3 {[%emt 0:02:31]} Nbd7 {[%emt 0:07:07]} 9. Bb2 {[%emt 0:00:33]} Ne4 {[%emt 0:03:29]} 10. Nd2 {[%emt 0:02:26]} Nxc3 {[%emt 0:16:36]} 11. Bxc3 {[%emt 0:00:06]} Nf6 {[%emt 0:00:09] LiveBook: 11 Games D11: Damengambit (Slawische Verteidigung)} 12. Bb2 {[%emt 0:05:06]} (12. Re1 a5 13. e4 dxe4 14. Nxe4 Qb6 15. d5 Bxe4 16. Bxe4 cxd5 17. cxd5 Rfd8 18. Bxf6 Bxf6 19. Rc1 exd5 {0-1 (43) Bayer,B (2421)-Landa,K (2615) Porto Mannu 2017}) 12... a5 {[%emt 0:11:38]} 13. f3 $146 {[%emt 0:09:17]} ({Vorgänger:} 13. c5 Qc7 14. Nf3 Nd7 15. Rc1 Bf6 16. Nd2 e5 17. e4 dxe4 18. Nxe4 Bxe4 19. Bxe4 exd4 20. Bxd4 {0-1 (44) Jentsch,K (2185)-Fischdick,G (2280) Germany 1993}) 13... c5 {[%emt 0:07:36]} 14. e4 {[%emt 0:23:24]} dxe4 {[%emt 0:00:49]} 15. fxe4 {[%emt 0:00:24]} Bg4 {[%emt 0:00:07]} 16. Qe1 {[%emt 0:01:38]} cxd4 {[%emt 0:00:16]} 17. e5 {[%emt 0:00:03]} Nd7 {[%emt 0:01:09]} 18. Bxd4 {[%emt 0:00:46]} Nc5 {[%emt 0:12:18]} 19. Qe3 {[%emt 0:05:05]} Bg5 {[%emt 0:00:39]} 20. Rf4 {[%emt 0:11:49]} Rc8 {[%emt 0:10:59]} 21. Bxc5 {[%emt 0:02:16]} Rxc5 {[%emt 0:02:15]} 22. Qxc5 {[%emt 0:00:06]} Bxf4 {[%emt 0:00:37]} 23. gxf4 {[%emt 0:08:49]} Qxd2 {[%emt 0:01:16]} 24. Qf2 {[%emt 0:01:39]} Qc3 {[%emt 0:00:32]} 25. Rf1 {[%emt 0:01:10]} Rd8 {[%emt 0:11:00]} 26. Qh4 {[%emt 0:00:09]} Qd4+ {[%emt 0:00:22]} 27. Kh1 {[%emt 0:00:04]} Bf5 {[%emt 0:04:05]} 28. Rg1 {[%emt 0:01:22]} h6 {[%emt 0:02:16]} 29. h3 {[%emt 0:00:41]} b6 {[%emt 0:00:27]} 30. Bf3 {[%emt 0:03:40]} Be4 {[%emt 0:01:09]} 31. Qg3 {[%emt 0:00:05]} g6 {[%emt 0:00:43]} 32. Qg2 {[%emt 0:01:16]} Bd3 {[%emt 0:02:06]} 33. Qd2 {[%emt 0:02:01]} Bf5 {[%emt 0:00:04]} 34. Qxd4 {[%emt 0:04:32]} Rxd4 {[%emt 0:00:03]} 35. Rd1 {[%emt 0:00:06]} Rxf4 {[%emt 0:00:46]} 36. Bg2 {[%emt 0:01:48]} Be4 {[%emt 0:00:53]} 37. Kg1 {[%emt 0:03:15]} Bxg2 {[%emt 0:00:20]} 38. Kxg2 {[%emt 0:00:03]} Rf5 {[%emt 0:00:47]} 39. Rd6 {[%emt 0:00:47]} Rxe5 {[%emt 0:00:06]} 40. a4 {[%emt 0:00:00]} Re3 {[%emt 0:00:00]} 41. Rxb6 {[%emt 0:00:14]} Kg7 {[%emt 0:02:20]} 42. c5 {[%emt 0:03:10]} Kf6 {[%emt 0:03:48]} 43. c6 {[%emt 0:02:41]} Rc3 {[%emt 0:07:36]} 44. h4 {[%emt 0:00:35]} Ke5 {[%emt 0:05:38]} 45. Rb5+ {[%emt 0:10:12]} Kf4 {[%emt 0:01:05]} 46. Rxa5 {[%emt 0:06:39]} Rxc6 {[%emt 0:00:12]} 47. Ra7 {[%emt 0:00:01]} f5 {[%emt 0:00:53]} 48. a5 {[%emt 0:02:53]} e5 {[%emt 0:01:31]} 49. b4 {[%emt 0:03:03]} e4 {[%emt 0:01:35]} 50. b5 {[%emt 0:02:21]} Rc2+ {[%emt 0:00:10]} 51. Kf1 {[%emt 0:02:21]} e3 {[%emt 0:05:05]} 52. b6 {[%emt 0:01:57]} Kf3 {[%emt 0:00:09]} 53. Kg1 {[%emt 0:00:03]} e2 {[%emt 0:00:29]} 54. Re7 {[%emt 0:00:05]} Rc1+ {[%emt 0:00:22]} 55. Kh2 {[%emt 0:00:06]} Rb1 {[%emt 0:00:11]} 56. Re5 {[%emt 0:03:41]} f4 {[%emt 0:00:14]} 57. Re6 {[%emt 0:02:09]} g5 {[%emt 0:00:27]} 58. hxg5 {[%emt 0:00:05]} hxg5 {[%emt 0:00:09]} 59. a6 {[%emt 0:00:15]} g4 {[%emt 0:00:25]} 60. Rxe2 {[%emt 0:00:56]} g3+ {[%emt 0:00:07]} 0-1

[Event "WYCC 2018 O14"]
[Site "Halkidiki"]
[Date "2018.10.29"]
[Round "10"]
[White "Manafov, Vugar"]
[Black "Mishra, Abhimanyu"]
[Result "1-0"]
[ECO "D37"]
[WhiteElo "2245"]
[BlackElo "2149"]
[Annotator "NA"]
[PlyCount "133"]
[EventDate "2018.10.20"]
[EventType "swiss"]
[EventCountry "GRE"]
[SourceTitle "playchess.com"]
[Source "ChessBase"]
[SourceQuality "1"]
[TimeControl "40/5400+30:1800+30"]

1. Nf3 {[%emt 0:00:00]} d5 {[%emt 0:00:00]} 2. d4 {[%emt 0:00:00]} Nf6 {[%emt 0:00:00]} 3. c4 {[%emt 0:00:25]} e6 {[%emt 0:00:02]} 4. Nc3 {[%emt 0:00:45]} Be7 {[%emt 0:01:04]} 5. Bf4 {[%emt 0:00:05]} O-O {[%emt 0:00:45]} 6. e3 {[%emt 0:00:18]} c5 {[%emt 0:06:23]} 7. dxc5 {[%emt 0:01:04]} Bxc5 {[%emt 0:01:27] LiveBook: 2367 Games} 8. cxd5 {[%emt 0:05:56]} Nxd5 {[%emt 0:01:19]} 9. Nxd5 {[%emt 0:00:09]} exd5 {[%emt 0:00:37]} 10. Bd3 {[%emt 0:00:04]} Bb6 {[%emt 0:10:06]} 11. O-O {[%emt 0:05:51]} Nc6 $14 {[%emt 0:04:18]} 12. Ne5 {[%emt 0:13:14]} Nxe5 {[%emt 0:20:17]} 13. Bxe5 {[%emt 0:00:08]} Re8 {[%emt 0:06:34]} 14. Bc3 {[%emt 0:02:21]} Qg5 {[%emt 0:06:23]} 15. Qf3 {[%emt 0:06:37]} Bc7 {[%emt 0:09:57]} 16. h3 {[%emt 0:00:10]} Be6 {[%emt 0:04:40]} 17. Bd4 {[%emt 0:00:15]} f6 {[%emt 0:08:17]} 18. Rac1 {[%emt 0:03:00]} Be5 {[%emt 0:01:41]} 19. Rc5 {[%emt 0:03:09]} Bxd4 {[%emt 0:02:03]} 20. exd4 {[%emt 0:00:11]} Rac8 {[%emt 0:02:02]} 21. Re1 {[%emt 0:00:57]} Rxc5 {[%emt 0:01:25]} 22. dxc5 {[%emt 0:00:07]} Bf7 {[%emt 0:01:23]} 23. Rxe8+ {[%emt 0:01:27]} Bxe8 {[%emt 0:00:55]} 24. b4 {[%emt 0:02:24]} Qe5 {[%emt 0:01:55]} 25. Qg4 {[%emt 0:03:35]} Qe1+ {[%emt 0:04:21]} 26. Kh2 {[%emt 0:01:32]} Qe7 {[%emt 0:00:25]} 27. f4 {[%emt 0:03:22]} g6 {[%emt 0:01:14]} 28. Qf3 {[%emt 0:01:09]} Bf7 {[%emt 0:00:40]} 29. Qf2 {[%emt 0:00:03]} h6 {[%emt 0:01:41]} 30. b5 {[%emt 0:01:10]} Qc7 {[%emt 0:00:32]} 31. Qd4 {[%emt 0:02:05]} Kg7 {[%emt 0:00:23]} 32. g3 {[%emt 0:02:47]} Be6 {[%emt 0:01:03]} 33. h4 {[%emt 0:01:56]} h5 {[%emt 0:00:32]} 34. Qc3 {[%emt 0:05:26]} Bd7 {[%emt 0:00:59]} 35. Kg2 {[%emt 0:00:32]} Be8 {[%emt 0:00:30]} 36. Kf2 {[%emt 0:00:25]} Bd7 {[%emt 0:00:26]} 37. Ke3 {[%emt 0:00:10]} Kf7 {[%emt 0:00:30]} 38. Kd2 {[%emt 0:00:12]} Qc8 {[%emt 0:00:38]} 39. Qd4 {[%emt 0:01:26]} Be6 {[%emt 0:00:35]} 40. a4 {[%emt 0:00:00]} Qc7 {[%emt 0:00:00]} 41. Qc3 {[%emt 0:00:36]} Bf5 {[%emt 0:13:21]} 42. Bxf5 {[%emt 0:01:30]} gxf5 {[%emt 0:01:25]} 43. Qd4 {[%emt 0:03:59]} Ke6 {[%emt 0:02:10]} 44. Kc2 {[%emt 0:02:11]} a6 {[%emt 0:06:21]} 45. bxa6 {[%emt 0:00:30]} bxa6 {[%emt 0:00:02]} 46. Qb4 {[%emt 0:01:13]} Kd7 {[%emt 0:01:14]} 47. Kd3 {[%emt 0:00:56]} Kc8 {[%emt 0:04:26]} 48. Qb6 {[%emt 0:00:33]} Qg7 {[%emt 0:00:59]} 49. Qxa6+ {[%emt 0:00:29]} Kb8 {[%emt 0:00:16]} 50. Qb6+ {[%emt 0:00:32]} Kc8 {[%emt 0:00:32]} 51. Qe6+ {[%emt 0:03:08]} Kc7 {[%emt 0:00:52]} 52. Qe1 {[%emt 0:01:56]} Kb7 {[%emt 0:02:08]} 53. Kd4 {[%emt 0:01:56]} Qd7 {[%emt 0:01:00]} 54. Qa5 {[%emt 0:01:43]} Qg7 {[%emt 0:00:46]} 55. Qb6+ {[%emt 0:00:05]} Kc8 {[%emt 0:00:39]} 56. c6 {[%emt 0:00:03]} Qe7 {[%emt 0:00:35]} 57. Qb7+ {[%emt 0:00:04]} Qxb7 {[%emt 0:00:07]} 58. cxb7+ {[%emt 0:00:03]} Kxb7 {[%emt 0:00:10]} 59. Kxd5 {[%emt 0:00:04]} Kb6 {[%emt 0:00:07]} 60. Ke6 {[%emt 0:00:03]} Ka5 61. Kxf5 {[%emt 0:00:06]} Kxa4 {[%emt 0:00:12]} 62. g4 {[%emt 0:00:06]} hxg4 {[%emt 0:00:08]} 63. Kxg4 {[%emt 0:00:03]} Kb5 {[%emt 0:00:10]} 64. h5 {[%emt 0:00:03]} Kc6 {[%emt 0:00:05]} 65. h6 {[%emt 0:00:03]} Kd7 {[%emt 0:00:06]} 66. h7 {[%emt 0:00:03]} Ke6 {[%emt 0:00:30]} 67. h8=Q 1-0

[Event "WYCC 2018 O14"]
[Site "Halkidiki"]
[Date "2018.10.29"]
[Round "10"]
[White "Boyer, Mahel"]
[Black "Antonica, Dragos-Andrei"]
[Result "0-1"]
[ECO "E24"]
[WhiteElo "2227"]
[BlackElo "2061"]
[Annotator "NA"]
[PlyCount "74"]
[EventDate "2018.10.20"]
[EventType "swiss"]
[EventCountry "GRE"]
[SourceTitle "playchess.com"]
[Source "ChessBase"]
[SourceQuality "1"]
[TimeControl "40/5400+30:1800+30"]

1. d4 {[%emt 0:00:00]} Nf6 {[%emt 0:00:00]} 2. c4 {[%emt 0:00:00]} e6 {[%emt 0:00:00]} 3. Nc3 {[%emt 0:00:00]} Bb4 {[%emt 0:01:40]} 4. a3 {[%emt 0:00:00]} Bxc3+ {[%emt 0:00:06]} 5. bxc3 {[%emt 0:00:00]} b6 {[%emt 0:01:24]} 6. f3 {[%emt 0:00:00]} O-O {[%emt 0:02:31]} 7. e4 {[%emt 0:00:00]} Nh5 {[%emt 0:10:32]} 8. Nh3 {[%emt 0:00:13]} f5 {[%emt 0:13:28]} 9. exf5 {[%emt 0:12:35]} exf5 {[%emt 0:02:15]} 10. Bg5 {[%emt 0:00:42]} (10. Bd3 $14) 10... Qe8+ {[%emt 0:02:12]} 11. Be2 {[%emt 0:00:20]} h6 {[%emt 0:04:54]} 12. Bc1 {[%emt 0:00:16]} d6 {[%emt 0:02:07]} 13. O-O {[%emt 0:00:05]} f4 {[%emt 0:02:47]} 14. Nf2 {[%emt 0:00:01]} Bf5 {[%emt 0:00:07]} 15. Re1 {[%emt 0:02:22]} Qg6 {[%emt 0:12:58]} 16. Ne4 {[%emt 0:00:16]} Nd7 {[%emt 0:02:38]} 17. Bd3 {[%emt 0:00:10]} Rae8 {[%emt 0:01:23]} 18. Qc2 $11 {[%emt 0:03:13]} c6 {[%emt 0:05:20]} 19. Bd2 {[%emt 0:03:24]} Kh8 {[%emt 0:08:12]} 20. a4 {[%emt 0:06:16]} a5 {[%emt 0:05:33]} 21. Rab1 {[%emt 0:01:12]} Qh7 {[%emt 0:01:44]} 22. Rbd1 {[%emt 0:03:23]} g5 {[%emt 0:02:38]} 23. Bc1 {[%emt 0:02:30]} Ng7 {[%emt 0:00:33]} 24. Ba3 {[%emt 0:03:07]} c5 {[%emt 0:00:26]} 25. Re2 {[%emt 0:00:22]} Re6 {[%emt 0:03:46]} 26. Qb1 {[%emt 0:11:17]} Rfe8 {[%emt 0:02:43]} 27. Rde1 {[%emt 0:00:43]} Qg6 {[%emt 0:01:27]} 28. Qb5 {[%emt 0:02:31]} g4 {[%emt 0:01:51]} 29. Kh1 {[%emt 0:01:02]} gxf3 {[%emt 0:02:17]} 30. gxf3 {[%emt 0:00:08]} Qh5 {[%emt 0:00:30]} 31. Rf1 {[%emt 0:02:35]} Bxe4 {[%emt 0:04:24]} 32. Rxe4 {[%emt 0:11:01]} Rxe4 {[%emt 0:01:37]} 33. fxe4 {[%emt 0:02:21]} Qh3 {[%emt 0:01:29]} 34. Qb1 {[%emt 0:00:32]} Nh5 {[%emt 0:00:21]} 35. Kg1 {[%emt 0:09:22]} Rg8+ {[%emt 0:00:37]} 36. Kf2 {[%emt 0:00:01]} Rg2+ {[%emt 0:00:08]} 37. Ke1 {[%emt 0:00:09]} Qe3+ {[%emt 0:00:04] Kf2 Rg8#} 0-1

[Event "WYCC 2018 O14"]
[Site "Halkidiki"]
[Date "2018.10.29"]
[Round "10"]
[White "Turcan, Richard"]
[Black "Stremavicius, Pijus"]
[Result "1-0"]
[ECO "B33"]
[WhiteElo "2218"]
[BlackElo "2024"]
[Annotator "NA"]
[PlyCount "91"]
[EventDate "2018.10.20"]
[EventType "swiss"]
[EventCountry "GRE"]
[SourceTitle "playchess.com"]
[Source "ChessBase"]
[SourceQuality "1"]
[TimeControl "40/5400+30:1800+30"]

1. e4 {[%emt 0:00:00]} c5 {[%emt 0:00:00]} 2. Nf3 {[%emt 0:00:00]} Nc6 {[%emt 0:00:00]} 3. d4 {[%emt 0:00:00]} cxd4 {[%emt 0:00:00]} 4. Nxd4 {[%emt 0:00:00]} Nf6 {[%emt 0:00:00]} 5. Nc3 {[%emt 0:00:00]} e5 {[%emt 0:00:00] LiveBook: 15323 Games} 6. Ndb5 {[%emt 0:00:05]} d6 {[%emt 0:00:00]} 7. Bg5 {[%emt 0:00:06]} a6 {[%emt 0:00:00]} 8. Na3 {[%emt 0:00:06]} b5 {[%emt 0:00:00]} 9. Bxf6 {[%emt 0:00:47]} gxf6 {[%emt 0:00:00]} 10. Nd5 {[%emt 0:00:06]} f5 {[%emt 0:00:13]} 11. c3 {[%emt 0:00:41]} Bg7 {[%emt 0:00:05]} 12. exf5 {[%emt 0:00:35]} Bxf5 {[%emt 0:00:22]} 13. Nc2 {[%emt 0:01:20]} O-O {[%emt 0:02:53]} 14. Nce3 {[%emt 0:00:41]} Be6 {[%emt 0:00:07]} 15. Bd3 {[%emt 0:01:45]} f5 {[%emt 0:02:48]} 16. O-O {[%emt 0:00:47]} Ne7 {[%emt 0:04:48]} 17. Nxe7+ {[%emt 0:01:27]} Qxe7 {[%emt 0:00:03]} 18. Bxf5 {[%emt 0:01:17]} Bf7 {[%emt 0:01:56]} 19. Qd3 {[%emt 0:09:25]} h6 {[%emt 0:03:17]} 20. a4 {[%emt 0:06:04]} Rab8 {[%emt 0:00:42]} 21. axb5 {[%emt 0:01:10]} axb5 {[%emt 0:00:07]} 22. Be4 {[%emt 0:04:48]} Rfd8 {[%emt 0:02:00]} 23. Bd5 {[%emt 0:02:03]} b4 {[%emt 0:02:56]} 24. Qg6 {[%emt 0:15:18]} (24. Nf5 $142 Qc7 25. c4) 24... Qf6 {[%emt 0:01:28]} 25. Qxf6 {[%emt 0:02:32]} Bxf6 {[%emt 0:00:03]} 26. Ra7 {[%emt 0:00:16]} Rf8 {[%emt 0:00:31]} 27. Rxf7 {[%emt 0:01:32]} Rxf7 {[%emt 0:00:01]} 28. Nf5 {[%emt 0:00:13]} Kf8 {[%emt 0:00:34]} 29. Bxf7 {[%emt 0:00:08]} Kxf7 {[%emt 0:00:06]} 30. Nxd6+ {[%emt 0:01:00]} Ke6 {[%emt 0:00:02]} 31. Ne4 {[%emt 0:00:15]} Be7 {[%emt 0:00:05]} 32. f3 {[%emt 0:05:27]} bxc3 {[%emt 0:02:00]} 33. bxc3 {[%emt 0:00:12]} Rb2 {[%emt 0:00:06]} 34. Rd1 {[%emt 0:03:39]} Bg5 {[%emt 0:01:29]} 35. Nxg5+ {[%emt 0:01:08]} hxg5 {[%emt 0:00:02]} 36. Rc1 {[%emt 0:00:08]} Kd5 {[%emt 0:01:05]} 37. c4+ {[%emt 0:01:07]} Kc5 {[%emt 0:00:07]} 38. Re1 {[%emt 0:00:03]} Kd6 {[%emt 0:00:42]} 39. Rd1+ {[%emt 0:00:36]} Ke6 {[%emt 0:00:09]} 40. Rc1 {[%emt 0:00:00]} Kd6 {[%emt 0:00:00]} 41. c5+ {[%emt 0:01:06]} Kc6 {[%emt 0:00:09]} 42. h3 {[%emt 0:00:32]} Re2 {[%emt 0:00:06]} 43. Rc4 $18 {[%emt 0:01:24]} Kd5 {[%emt 0:00:15]} 44. c6 {[%emt 0:01:48]} g4 {[%emt 0:00:05]} 45. c7 {[%emt 0:00:42]} g3 {[%emt 0:00:05]} 46. Rc1 {[%emt 0:00:03]} 1-0